[Event "Live Chess"]
[Site "Chess.com"]
[Date "2024.06.01"]
[Round "-"]
[White "Yarigo"]
[Black "updatedopenings2024"]
[Result "0-1"]
[WhiteElo "2350"]
[BlackElo "1911"]
[TimeControl "300"]
[EndTime "10:56:13 PDT"]
[Termination "updatedopenings2024 won by checkmate"]

1. d4 {[%clk 0:04:55.9]} 1... Nf6 {[%clk 0:04:58.6]} 2. c4 {[%clk 0:04:54.6]}
2... g6 {[%clk 0:04:57.7]} 3. Nc3 {[%clk 0:04:53.1]} 3... Bg7 {[%clk 0:04:57.4]}
4. e4 {[%clk 0:04:51.8]} 4... d6 {[%clk 0:04:57.1]} 5. f4 {[%clk 0:04:50.7]}
5... c5 {[%clk 0:04:55.3]} 6. dxc5 {[%clk 0:04:46.9]} 6... dxc5 {[%clk
0:04:49.8]} 7. Qxd8+ {[%clk 0:04:43.7]} 7... Kxd8 {[%clk 0:04:49.7]} 8. e5
{[%clk 0:04:42.5]} 8... Nfd7 {[%clk 0:04:47]} 9. Nf3 {[%clk 0:04:40.8]} 9... Nc6
{[%clk 0:04:46.1]} 10. Be3 {[%clk 0:04:34.1]} 10... b6 {[%clk 0:04:45.1]} 11.
O-O-O {[%clk 0:04:32.1]} 11... e6 {[%clk 0:04:44.3]} 12. Ng5 {[%clk 0:04:24.9]}
12... Ke7 {[%clk 0:04:43.6]} 13. Be2 {[%clk 0:04:19.1]} 13... h6 {[%clk
0:04:42.1]} 14. Nge4 {[%clk 0:04:16.8]} 14... Ba6 {[%clk 0:04:37.9]} 15. b3
{[%clk 0:04:05.3]} 15... Rad8 {[%clk 0:04:36.6]} 16. Rd2 {[%clk 0:04:01.7]}
16... Ndxe5 {[%clk 0:04:20]} 17. fxe5 {[%clk 0:03:58.6]} 17... Bxe5 {[%clk
0:04:19.9]} 18. Rxd8 {[%clk 0:03:25.3]} 18... Rxd8 {[%clk 0:04:19.8]} 19. Bxh6
{[%clk 0:03:23.8]} 19... Rh8 {[%clk 0:04:06.3]} 20. Bd2 {[%clk 0:03:16.5]} 20...
f5 {[%clk 0:04:05.5]} 21. Ng5 {[%clk 0:03:13.8]} 21... Rxh2 {[%clk 0:03:46.4]}
22. Rxh2 {[%clk 0:03:10.8]} 22... Bxh2 {[%clk 0:03:46.3]} 23. Nb5 {[%clk
0:02:52.3]} 23... Bxb5 {[%clk 0:03:35]} 24. cxb5 {[%clk 0:02:50.7]} 24... Nd4
{[%clk 0:03:34.6]} 25. Bc4 {[%clk 0:02:47.4]} 25... Kf6 {[%clk 0:03:32]} 26. Be3
{[%clk 0:02:19.6]} 26... e5 {[%clk 0:03:26.1]} 27. Bxd4 {[%clk 0:01:48.1]} 27...
cxd4 {[%clk 0:03:26]} 28. Ne6 {[%clk 0:01:45.2]} 28... d3 {[%clk 0:02:59.2]} 29.
Nd8 {[%clk 0:01:33.3]} 29... e4 {[%clk 0:02:58.4]} 30. Nc6 {[%clk 0:01:31.7]}
30... f4 {[%clk 0:02:34.5]} 31. a4 {[%clk 0:01:26.2]} 31... Bg1 {[%clk
0:02:29.7]} 32. b4 {[%clk 0:01:17]} 32... g5 {[%clk 0:02:16.3]} 33. Nxa7 {[%clk
0:01:13.7]} 33... g4 {[%clk 0:02:14.6]} 34. Nc6 {[%clk 0:00:38.1]} 34... f3
{[%clk 0:02:08.9]} 35. gxf3 {[%clk 0:00:36]} 35... g3 {[%clk 0:02:08.4]} 36.
fxe4 {[%clk 0:00:24.4]} 36... g2 {[%clk 0:02:07.5]} 37. e5+ {[%clk 0:00:22]}
37... Kg7 {[%clk 0:01:54.1]} 38. e6 {[%clk 0:00:17.8]} 38... Be3+ {[%clk
0:01:53]} 39. Kb2 {[%clk 0:00:16.7]} 39... g1=Q {[%clk 0:01:46.7]} 40. e7 {[%clk
0:00:16.2]} 40... Qc1+ {[%clk 0:01:45.8]} 41. Ka2 {[%clk 0:00:13.3]} 41... Qc2+
{[%clk 0:01:45]} 42. Ka3 {[%clk 0:00:11.9]} 42... Bc1# {[%clk 0:01:43.8]} 0-1

[Event "Live Chess"]
[Site "Chess.com"]
[Date "2024.06.01"]
[Round "-"]
[White "Stanbad1"]
[Black "jimwad"]
[Result "1-0"]
[WhiteElo "2678"]
[BlackElo "1230"]
[TimeControl "300"]
[EndTime "10:56:27 PDT"]
[Termination "Stanbad1 won by resignation"]

1. d4 {[%clk 0:04:56.1]} 1... d5 {[%clk 0:04:58.7]} 2. Nc3 {[%clk 0:04:55.1]}
2... Nf6 {[%clk 0:04:56.6]} 3. Bf4 {[%clk 0:04:53.7]} 3... e6 {[%clk 0:04:53.1]}
4. Nb5 {[%clk 0:04:52.3]} 4... Bd6 {[%clk 0:04:46.2]} 5. Nxd6+ {[%clk
0:04:51.3]} 5... cxd6 {[%clk 0:04:44.5]} 6. e3 {[%clk 0:04:51.2]} 6... O-O
{[%clk 0:04:42.3]} 7. c3 {[%clk 0:04:50.6]} 7... Nc6 {[%clk 0:04:40.1]} 8. h3
{[%clk 0:04:49.6]} 8... h6 {[%clk 0:04:30.5]} 9. Nf3 {[%clk 0:04:48.1]} 9... Ne7
{[%clk 0:04:25.7]} 10. Bd3 {[%clk 0:04:46.3]} 10... Ng6 {[%clk 0:04:24.3]} 11.
Bxg6 {[%clk 0:04:44.9]} 11... fxg6 {[%clk 0:04:22.1]} 12. Qd3 {[%clk 0:04:44.4]}
12... Qe8 {[%clk 0:04:15.5]} 13. Bxd6 {[%clk 0:04:42.3]} 13... Rf7 {[%clk
0:04:14.7]} 14. Ne5 {[%clk 0:04:40.4]} 14... Ne4 {[%clk 0:04:04.3]} 15. Nxf7
{[%clk 0:04:38.2]} 15... Kxf7 {[%clk 0:03:56.3]} 16. Bh2 {[%clk 0:04:34.8]}
16... Kg8 {[%clk 0:03:52]} 17. O-O {[%clk 0:04:32.5]} 17... Qf7 {[%clk
0:03:46.8]} 18. f3 {[%clk 0:04:31]} 18... Nf6 {[%clk 0:03:44.5]} 19. e4 {[%clk
0:04:27.4]} 19... dxe4 {[%clk 0:03:43]} 20. fxe4 {[%clk 0:04:27.3]} 20... b6
{[%clk 0:03:35.2]} 21. e5 {[%clk 0:04:26.4]} 21... Nd5 {[%clk 0:03:33.7]} 22.
Rxf7 {[%clk 0:04:24.5]} 1-0

[Event "Live Chess"]
[Site "Chess.com"]
[Date "2024.06.01"]
[Round "-"]
[White "IanCalvert2"]
[Black "McFim"]
[Result "0-1"]
[WhiteElo "1447"]
[BlackElo "1580"]
[TimeControl "300"]
[EndTime "10:56:37 PDT"]
[Termination "McFim won on time"]

1. b3 {[%clk 0:04:56.5]} 1... d5 {[%clk 0:04:58.5]} 2. Bb2 {[%clk 0:04:55.5]}
2... Nf6 {[%clk 0:04:57.4]} 3. Nf3 {[%clk 0:04:49.3]} 3... e6 {[%clk 0:04:54.4]}
4. e3 {[%clk 0:04:44.9]} 4... Be7 {[%clk 0:04:53.1]} 5. d4 {[%clk 0:04:41.2]}
5... Nbd7 {[%clk 0:04:52.3]} 6. Bd3 {[%clk 0:04:39.8]} 6... O-O {[%clk
0:04:48.9]} 7. Nbd2 {[%clk 0:04:38.4]} 7... b6 {[%clk 0:04:47.5]} 8. O-O {[%clk
0:04:34.9]} 8... Bb7 {[%clk 0:04:47]} 9. Ne5 {[%clk 0:04:32.8]} 9... Nxe5 {[%clk
0:04:42.8]} 10. dxe5 {[%clk 0:04:30.5]} 10... Nd7 {[%clk 0:04:42.1]} 11. f4
{[%clk 0:04:27.1]} 11... g6 {[%clk 0:04:40.8]} 12. e4 {[%clk 0:04:18.1]} 12...
Nc5 {[%clk 0:04:29.2]} 13. Qe2 {[%clk 0:04:07.9]} 13... Nxd3 {[%clk 0:04:27]}
14. cxd3 {[%clk 0:03:54]} 14... dxe4 {[%clk 0:04:25.1]} 15. Nxe4 {[%clk
0:03:42.8]} 15... Bd5 {[%clk 0:04:06.3]} 16. Nf6+ {[%clk 0:03:22.3]} 16... Bxf6
{[%clk 0:03:56.1]} 17. exf6 {[%clk 0:03:21]} 17... h6 {[%clk 0:03:45.6]} 18. Qg4
{[%clk 0:03:11.3]} 18... Kh7 {[%clk 0:03:43]} 19. Qh4 {[%clk 0:03:04.6]} 19...
Rh8 {[%clk 0:03:37.2]} 20. g4 {[%clk 0:02:51]} 20... Kg8 {[%clk 0:03:34]} 21. f5
{[%clk 0:02:30.9]} 21... exf5 {[%clk 0:03:25.8]} 22. gxf5 {[%clk 0:02:24.4]}
22... g5 {[%clk 0:03:23.5]} 23. Qg3 {[%clk 0:02:21.1]} 23... Kh7 {[%clk
0:03:14.2]} 24. Rac1 {[%clk 0:02:05.6]} 24... c6 {[%clk 0:03:12.2]} 25. Rfe1
{[%clk 0:01:45.5]} 25... Re8 {[%clk 0:03:05.5]} 26. Rxe8 {[%clk 0:01:38.5]}
26... Qxe8 {[%clk 0:03:03.7]} 27. Re1 {[%clk 0:01:36.9]} 27... Qg8 {[%clk
0:02:56.3]} 28. Re7 {[%clk 0:01:13.8]} 28... a5 {[%clk 0:02:52.7]} 29. Qe5
{[%clk 0:00:34.4]} 29... a4 {[%clk 0:02:43.2]} 30. b4 {[%clk 0:00:26.6]} 30...
b5 {[%clk 0:02:39.6]} 31. a3 {[%clk 0:00:24.4]} 31... Rc8 {[%clk 0:02:30.6]} 32.
Bd4 {[%clk 0:00:22]} 32... Rd8 {[%clk 0:02:24.2]} 33. Bc5 {[%clk 0:00:16.7]}
33... Bb3 {[%clk 0:02:19.6]} 34. Bd6 {[%clk 0:00:15.5]} 34... Bd5 {[%clk
0:02:17]} 35. Rc7 {[%clk 0:00:10.9]} 35... g4 {[%clk 0:02:13.8]} 36. Qe7 {[%clk
0:00:08.7]} 36... g3 {[%clk 0:02:05.1]} 37. h3 {[%clk 0:00:06.8]} 37... h5
{[%clk 0:02:01.3]} 38. Rd7 {[%clk 0:00:04.1]} 38... Rxd7 {[%clk 0:01:58.8]} 39.
Qxd7 {[%clk 0:00:03]} 39... h4 {[%clk 0:01:56.2]} 40. Qe7 {[%clk 0:00:00.8]}
40... Kh8 {[%clk 0:01:46.9]} 0-1

[Event "Live Chess"]
[Site "Chess.com"]
[Date "2024.06.01"]
[Round "-"]
[White "PureDashingOctopus"]
[Black "Ninifu"]
[Result "1-0"]
[WhiteElo "2241"]
[BlackElo "2025"]
[TimeControl "300"]
[EndTime "10:56:45 PDT"]
[Termination "PureDashingOctopus won by resignation"]

1. e4 {[%clk 0:04:57.8]} 1... d5 {[%clk 0:04:58.6]} 2. exd5 {[%clk 0:04:56.4]}
2... Nf6 {[%clk 0:04:57.7]} 3. Nf3 {[%clk 0:04:55]} 3... Bg4 {[%clk 0:04:55.9]}
4. Bb5+ {[%clk 0:04:53.7]} 4... Nbd7 {[%clk 0:04:53.9]} 5. h3 {[%clk 0:04:52.5]}
5... Bh5 {[%clk 0:04:39.4]} 6. g4 {[%clk 0:04:40.5]} 6... Bg6 {[%clk 0:04:37.8]}
7. Ne5 {[%clk 0:04:39.5]} 7... a6 {[%clk 0:04:31.9]} 8. Bxd7+ {[%clk 0:04:32.7]}
8... Nxd7 {[%clk 0:04:30.8]} 9. Nxg6 {[%clk 0:04:32.4]} 9... hxg6 {[%clk
0:04:27.6]} 10. d4 {[%clk 0:04:30.5]} 10... Nf6 {[%clk 0:04:26.5]} 11. c4 {[%clk
0:04:28]} 11... Qd7 {[%clk 0:04:18.5]} 12. Nc3 {[%clk 0:04:25.7]} 12... Nxg4
{[%clk 0:04:13.6]} 13. Bd2 {[%clk 0:04:14.5]} 13... Nf6 {[%clk 0:04:12.5]} 14.
Qf3 {[%clk 0:04:11.7]} 14... Qf5 {[%clk 0:04:03.4]} 15. Qxf5 {[%clk 0:04:08.5]}
15... gxf5 {[%clk 0:04:02.1]} 16. Bf4 {[%clk 0:04:08]} 16... O-O-O {[%clk
0:03:59.7]} 17. O-O-O {[%clk 0:04:05.5]} 17... g6 {[%clk 0:03:19.7]} 18. Kc2
{[%clk 0:03:43.3]} 18... Bh6 {[%clk 0:02:56.5]} 19. Be5 {[%clk 0:03:33.8]} 19...
Rh7 {[%clk 0:02:53.3]} 20. Bxf6 {[%clk 0:03:27.5]} 20... exf6 {[%clk 0:02:51.3]}
21. c5 {[%clk 0:03:26.6]} 21... Bf4 {[%clk 0:02:45.5]} 22. Kd3 {[%clk
0:03:24.1]} 22... Rdh8 {[%clk 0:02:42.9]} 23. Kc4 {[%clk 0:03:18.8]} 23... Rxh3
{[%clk 0:02:41.2]} 24. Rxh3 {[%clk 0:03:15.5]} 24... Rxh3 {[%clk 0:02:40.1]} 25.
Re1 {[%clk 0:03:15.1]} 25... Kd7 {[%clk 0:02:37.1]} 26. Re2 {[%clk 0:02:55.1]}
26... Rf3 {[%clk 0:02:22.4]} 27. d6 {[%clk 0:02:45.1]} 27... cxd6 {[%clk
0:01:34.6]} 28. Nd5 {[%clk 0:02:36.2]} 28... dxc5 {[%clk 0:01:24.9]} 29. Re7+
{[%clk 0:02:33]} 29... Kd8 {[%clk 0:01:16.3]} 30. Kxc5 {[%clk 0:02:02.8]} 30...
Rxf2 {[%clk 0:01:13.9]} 31. Rxf7 {[%clk 0:01:52.8]} 31... Rxb2 {[%clk
0:01:00.1]} 32. Nxf4 {[%clk 0:01:49.6]} 32... Rc2+ {[%clk 0:00:44.1]} 33. Kd5
{[%clk 0:01:43.7]} 33... Rc6 {[%clk 0:00:38.1]} 34. Ne6+ {[%clk 0:01:42]} 34...
Kc8 {[%clk 0:00:36.1]} 35. Rxf6 {[%clk 0:01:39.1]} 1-0

[Event "Live Chess"]
[Site "Chess.com"]
[Date "2024.06.01"]
[Round "-"]
[White "Enhard"]
[Black "OliWally08"]
[Result "1-0"]
[WhiteElo "1441"]
[BlackElo "1262"]
[TimeControl "300"]
[EndTime "10:56:48 PDT"]
[Termination "Enhard won by resignation"]

1. d4 {[%clk 0:04:58.5]} 1... Nf6 {[%clk 0:04:58.5]} 2. Bg5 {[%clk 0:04:57.2]}
2... e6 {[%clk 0:04:56.9]} 3. e4 {[%clk 0:04:54.8]} 3... h6 {[%clk 0:04:56.2]}
4. Bxf6 {[%clk 0:04:52.7]} 4... Qxf6 {[%clk 0:04:54.2]} 5. e5 {[%clk 0:04:51.9]}
5... Qg5 {[%clk 0:04:45.4]} 6. Nf3 {[%clk 0:04:50.3]} 6... Qh5 {[%clk
0:04:39.9]} 7. Nbd2 {[%clk 0:04:45.8]} 7... Nc6 {[%clk 0:04:36.9]} 8. c3 {[%clk
0:04:44.3]} 8... d5 {[%clk 0:04:29.9]} 9. Be2 {[%clk 0:04:42.9]} 9... Qg6 {[%clk
0:04:19.1]} 10. O-O {[%clk 0:04:41]} 10... Ne7 {[%clk 0:04:16.9]} 11. Nh4 {[%clk
0:04:36.6]} 11... Qg5 {[%clk 0:04:07.3]} 12. Ndf3 {[%clk 0:04:30.7]} 12... Qf4
{[%clk 0:03:51.8]} 13. g3 {[%clk 0:04:21.4]} 13... Qe4 {[%clk 0:03:26.7]} 14.
Nd2 {[%clk 0:04:20.1]} 14... Qh7 {[%clk 0:03:16.5]} 15. Nb3 {[%clk 0:04:17.6]}
15... b6 {[%clk 0:03:05.5]} 16. Bd3 {[%clk 0:04:15.9]} 16... g6 {[%clk
0:02:55.1]} 17. Ng2 {[%clk 0:03:48.9]} 17... Bb7 {[%clk 0:02:52.9]} 18. Ne3
{[%clk 0:03:47.7]} 18... c5 {[%clk 0:02:47.8]} 19. Ng4 {[%clk 0:03:45.9]} 19...
Bg7 {[%clk 0:02:38.7]} 20. Bc2 {[%clk 0:03:39.2]} 20... c4 {[%clk 0:02:37.4]}
21. Nd2 {[%clk 0:03:37.7]} 21... Nf5 {[%clk 0:02:30.6]} 22. Bxf5 {[%clk
0:03:35.3]} 22... exf5 {[%clk 0:02:29.4]} 23. Ne3 {[%clk 0:03:33.7]} 23... O-O
{[%clk 0:02:28.5]} 24. f4 {[%clk 0:03:23.5]} 24... b5 {[%clk 0:02:21.3]} 25. a3
{[%clk 0:03:21.2]} 25... a6 {[%clk 0:02:16.2]} 26. Nf3 {[%clk 0:03:11.6]} 26...
Rfe8 {[%clk 0:02:11.9]} 27. Ne1 {[%clk 0:03:10]} 27... Kh8 {[%clk 0:02:06.5]}
28. N1c2 {[%clk 0:03:09]} 28... f6 {[%clk 0:02:03.6]} 29. Nb4 {[%clk 0:03:05.8]}
29... fxe5 {[%clk 0:02:00]} 30. dxe5 {[%clk 0:03:03.3]} 30... Qg8 {[%clk
0:01:51.3]} 31. Nexd5 {[%clk 0:02:55.7]} 31... Bxd5 {[%clk 0:01:49.5]} 32. Qxd5
{[%clk 0:02:53]} 32... Qxd5 {[%clk 0:01:47.2]} 33. Nxd5 {[%clk 0:02:51.9]} 33...
Red8 {[%clk 0:01:40.6]} 34. Ne7 {[%clk 0:02:42]} 34... Kh7 {[%clk 0:01:35.4]}
35. Rfd1 {[%clk 0:02:39.1]} 35... Bf8 {[%clk 0:01:29]} 36. Nc6 {[%clk
0:02:32.6]} 36... Rxd1+ {[%clk 0:01:27.3]} 37. Rxd1 {[%clk 0:02:31.5]} 37... Rc8
{[%clk 0:01:25.7]} 38. Nd4 {[%clk 0:02:25.4]} 38... Rd8 {[%clk 0:01:24.3]} 39.
Kf1 {[%clk 0:02:24.4]} 39... Bc5 {[%clk 0:01:23.1]} 40. Ke2 {[%clk 0:02:23.6]}
40... Bxd4 {[%clk 0:01:22.4]} 41. Rxd4 {[%clk 0:02:22]} 41... Rxd4 {[%clk
0:01:21]} 42. cxd4 {[%clk 0:02:20.5]} 42... Kg7 {[%clk 0:01:20.7]} 43. Kd2
{[%clk 0:02:19.2]} 43... Kf7 {[%clk 0:01:20]} 44. Kc3 {[%clk 0:02:18.7]} 44...
Ke6 {[%clk 0:01:19.4]} 45. Kb4 {[%clk 0:02:18.2]} 45... Kd5 {[%clk 0:01:17.9]}
46. Kc3 {[%clk 0:02:16.7]} 46... g5 {[%clk 0:01:15]} 47. h3 {[%clk 0:02:11.4]}
47... a5 {[%clk 0:01:12.8]} 48. b3 {[%clk 0:02:01.9]} 48... cxb3 {[%clk
0:01:06.2]} 49. Kxb3 {[%clk 0:01:57.9]} 49... gxf4 {[%clk 0:01:04]} 50. gxf4
{[%clk 0:01:56.8]} 50... h5 {[%clk 0:01:02.1]} 51. h4 {[%clk 0:01:54.2]} 51...
Ke6 {[%clk 0:00:57.4]} 52. Kc3 {[%clk 0:01:52.5]} 52... Kd5 {[%clk 0:00:56.4]}
53. Kd3 {[%clk 0:01:48.9]} 53... b4 {[%clk 0:00:52.2]} 54. axb4 {[%clk
0:01:47.7]} 54... axb4 {[%clk 0:00:49.5]} 55. Kc2 {[%clk 0:01:46.9]} 55... Ke6
{[%clk 0:00:44.7]} 56. Kb3 {[%clk 0:01:46.1]} 56... Kd5 {[%clk 0:00:44.1]} 57.
Kxb4 {[%clk 0:01:45.1]} 57... Ke6 {[%clk 0:00:40.9]} 58. Kc5 {[%clk 0:01:43.9]}
58... Ke7 {[%clk 0:00:39.2]} 59. d5 {[%clk 0:01:42.8]} 59... Kd7 {[%clk
0:00:38]} 60. e6+ {[%clk 0:01:39.6]} 60... Ke7 {[%clk 0:00:37.3]} 61. Kc6 {[%clk
0:01:38.5]} 61... Kd8 {[%clk 0:00:36.3]} 62. Kd6 {[%clk 0:01:35.6]} 62... Ke8
{[%clk 0:00:35.5]} 63. Kc7 {[%clk 0:01:34.6]} 63... Ke7 {[%clk 0:00:34.5]} 64.
d6+ {[%clk 0:01:33.9]} 64... Kxe6 {[%clk 0:00:33.9]} 65. d7 {[%clk 0:01:33.5]}
65... Kd5 {[%clk 0:00:33.4]} 66. d8=Q+ {[%clk 0:01:32.2]} 66... Ke4 {[%clk
0:00:33.3]} 67. Qg5 {[%clk 0:01:31]} 67... Kf3 {[%clk 0:00:31.1]} 68. Qxf5
{[%clk 0:01:29]} 68... Kg3 {[%clk 0:00:30.1]} 69. Qxh5 {[%clk 0:01:28.3]} 69...
Kxf4 {[%clk 0:00:29.1]} 70. Qg6 {[%clk 0:01:25.8]} 70... Ke5 {[%clk 0:00:28.2]}
71. Kd7 {[%clk 0:01:24.4]} 71... Kd5 {[%clk 0:00:27.4]} 72. Qg5+ {[%clk
0:01:23.4]} 72... Ke4 {[%clk 0:00:26.7]} 73. Ke6 {[%clk 0:01:22.5]} 1-0

[Event "Live Chess"]
[Site "Chess.com"]
[Date "2024.06.01"]
[Round "-"]
[White "Rusty_Bridges"]
[Black "chessfiction"]
[Result "0-1"]
[WhiteElo "1497"]
[BlackElo "2411"]
[TimeControl "300"]
[EndTime "10:56:49 PDT"]
[Termination "chessfiction won on time"]

1. e4 {[%clk 0:04:52.8]} 1... c6 {[%clk 0:04:55.9]} 2. Nf3 {[%clk 0:04:51.4]}
2... d5 {[%clk 0:04:55.8]} 3. exd5 {[%clk 0:04:50.1]} 3... cxd5 {[%clk
0:04:45.7]} 4. Bb5+ {[%clk 0:04:49.4]} 4... Nc6 {[%clk 0:04:44]} 5. O-O {[%clk
0:04:47.9]} 5... Nf6 {[%clk 0:04:41.5]} 6. d4 {[%clk 0:04:46.6]} 6... Bg4 {[%clk
0:04:39.1]} 7. Bf4 {[%clk 0:04:41.5]} 7... e6 {[%clk 0:04:37.4]} 8. Nbd2 {[%clk
0:04:39.3]} 8... Bd6 {[%clk 0:04:35.6]} 9. Bxd6 {[%clk 0:04:36.9]} 9... Qxd6
{[%clk 0:04:35.5]} 10. Qe1 {[%clk 0:04:34.5]} 10... O-O-O {[%clk 0:04:19.1]} 11.
Bxc6 {[%clk 0:04:23.9]} 11... Qxc6 {[%clk 0:04:15.4]} 12. Ne5 {[%clk 0:04:21.5]}
12... Qc7 {[%clk 0:04:14.4]} 13. b4 {[%clk 0:03:57.3]} 13... Bf5 {[%clk
0:04:10.2]} 14. Nd3 {[%clk 0:03:46.2]} 14... Ng4 {[%clk 0:04:03.3]} 15. g3
{[%clk 0:03:41]} 15... h5 {[%clk 0:04:01.4]} 16. Nf3 {[%clk 0:03:30.3]} 16... h4
{[%clk 0:03:59.2]} 17. Nfe5 {[%clk 0:03:07.3]} 17... Nxh2 {[%clk 0:03:47.1]} 18.
Kxh2 {[%clk 0:02:56.9]} 18... hxg3+ {[%clk 0:03:45.6]} 19. Kxg3 {[%clk
0:02:56.1]} 19... Rh3+ {[%clk 0:03:15.5]} 20. Kg2 {[%clk 0:02:50.7]} 20... Rdh8
{[%clk 0:03:15.4]} 21. f3 {[%clk 0:02:43.3]} 21... Rh2+ {[%clk 0:03:12.8]} 22.
Kg1 {[%clk 0:02:39.8]} 22... Qxc2 {[%clk 0:02:50.2]} 23. Nf2 {[%clk 0:01:59.5]}
23... Rh1+ {[%clk 0:02:21.2]} 24. Kg2 {[%clk 0:01:58.2]} 24... R8h2+ {[%clk
0:02:13.2]} 25. Kg3 {[%clk 0:01:56.5]} 25... Rh3+ {[%clk 0:01:14.5]} 26. Kg2
{[%clk 0:01:47]} 26... R1h2+ {[%clk 0:01:11.9]} 27. Kg1 {[%clk 0:01:45.8]} 27...
Qb2 {[%clk 0:01:05.1]} 28. Rc1+ {[%clk 0:01:14.3]} 28... Kd8 {[%clk 0:00:59.5]}
29. Nxf7+ {[%clk 0:01:09.3]} 29... Ke8 {[%clk 0:00:54.9]} 30. Nd6+ {[%clk
0:01:07.3]} 30... Kd7 {[%clk 0:00:53.9]} 31. Nxf5 {[%clk 0:00:48.5]} 31... exf5
{[%clk 0:00:51.9]} 32. Qe5 {[%clk 0:00:30.4]} 32... Rh1+ {[%clk 0:00:33.2]} 33.
Kg2 {[%clk 0:00:29]} 33... R3h2+ {[%clk 0:00:23]} 34. Qxh2 {[%clk 0:00:27.5]}
34... Rxh2+ {[%clk 0:00:21.2]} 35. Kxh2 {[%clk 0:00:27.4]} 35... Qxd4 {[%clk
0:00:19.9]} 36. Kg2 {[%clk 0:00:25.4]} 36... Qxb4 {[%clk 0:00:18.3]} 37. Rcd1
{[%clk 0:00:23.2]} 37... d4 {[%clk 0:00:16.4]} 38. Nh3 {[%clk 0:00:20.5]} 38...
Qa3 {[%clk 0:00:15.5]} 39. Nf4 {[%clk 0:00:18.3]} 39... Qxa2+ {[%clk 0:00:14.7]}
40. Rf2 {[%clk 0:00:16.3]} 40... Qa4 {[%clk 0:00:14.3]} 41. Rdd2 {[%clk
0:00:14.3]} 41... Kc7 {[%clk 0:00:13.3]} 42. Nd5+ {[%clk 0:00:12.6]} 42... Kd6
{[%clk 0:00:12.4]} 43. Nf4 {[%clk 0:00:10.6]} 43... b6 {[%clk 0:00:11.6]} 44.
Rd3 {[%clk 0:00:07.8]} 44... Kc7 {[%clk 0:00:10.9]} 45. Rfd2 {[%clk 0:00:07.3]}
45... Kb7 {[%clk 0:00:10.4]} 46. Rxd4 {[%clk 0:00:06.6]} 46... Qb5 {[%clk
0:00:09.6]} 47. Rd7+ {[%clk 0:00:05.3]} 47... Kc8 {[%clk 0:00:09.1]} 48. Rd8+
{[%clk 0:00:03.4]} 48... Kc7 {[%clk 0:00:08.6]} 49. R8d7+ {[%clk 0:00:02.8]}
49... Qxd7 {[%clk 0:00:08.1]} 50. Rxd7+ {[%clk 0:00:00.9]} 50... Kxd7 {[%clk
0:00:08]} 51. Nd5 {[%clk 0:00:00.2]} 51... Kd6 {[%clk 0:00:07.9]} 0-1

[Event "Live Chess"]
[Site "Chess.com"]
[Date "2024.06.01"]
[Round "-"]
[White "LL220284LL"]
[Black "JohanKjeldahl"]
[Result "1-0"]
[WhiteElo "2583"]
[BlackElo "1851"]
[TimeControl "300"]
[EndTime "10:56:54 PDT"]
[Termination "LL220284LL won by resignation"]

1. b3 {[%clk 0:04:57.8]} 1... e5 {[%clk 0:04:57.5]} 2. Bb2 {[%clk 0:04:57.7]}
2... d6 {[%clk 0:04:55.1]} 3. e3 {[%clk 0:04:56.2]} 3... Nf6 {[%clk 0:04:52.8]}
4. Nf3 {[%clk 0:04:55.3]} 4... g6 {[%clk 0:04:50.5]} 5. d4 {[%clk 0:04:54.8]}
5... Nbd7 {[%clk 0:04:48.3]} 6. dxe5 {[%clk 0:04:53.6]} 6... dxe5 {[%clk
0:04:46.3]} 7. Nxe5 {[%clk 0:04:52.6]} 7... Nxe5 {[%clk 0:04:44.9]} 8. Bxe5
{[%clk 0:04:52.5]} 8... Bg7 {[%clk 0:04:42.2]} 9. Qxd8+ {[%clk 0:04:51.2]} 9...
Kxd8 {[%clk 0:04:41]} 10. Nc3 {[%clk 0:04:49.8]} 10... c6 {[%clk 0:04:39.3]} 11.
O-O-O+ {[%clk 0:04:47.7]} 11... Ke7 {[%clk 0:04:38.3]} 12. f3 {[%clk 0:04:44.6]}
12... Be6 {[%clk 0:04:35.9]} 13. Bd6+ {[%clk 0:04:40.4]} 13... Ke8 {[%clk
0:04:33.3]} 14. Na4 {[%clk 0:04:39]} 14... b6 {[%clk 0:04:30.8]} 15. Ba6 {[%clk
0:04:37.3]} 15... Nd5 {[%clk 0:04:27]} 16. Bb7 {[%clk 0:04:32.9]} 16... Rd8
{[%clk 0:04:25.4]} 17. Bxc6+ {[%clk 0:04:31]} 1-0